bitfinex-derivatives/quotes_ETHF0:USTF0_20250624
["timestamp","ask_amount","ask_price","bid_price","bid_amount"]
[1750781456341,0.81923,2440.3,2440.1,4.02705]
[1750781456542,0.8192,2440.3,2440.2,0.81923]
[1750781456746,0.8192,2440.3,2440.1,4.02704]
[1750781456951,1.8436,2440.3,2440.1,4.02704]
[1750781457146,0.81923,2440.2,2440.1,3.2078]
[1750781457445,0.81923,2440.2,2439.7,0.7438]
[1750781457446,0.81937,2439.8,2439.7,0.7438]
[1750781457746,0.81936,2439.9,2439.8,0.81937]
[1750781458149,0.81937,2439.8,2439.7,1.56318]
[1750781458447,0.81942,2439.7,2439.6,0.81942]
[1750781458652,0.81939,2439.8,2439.7,0.8194]
[1750781459551,0.81941,2439.7,2439.6,0.81942]
[1750781459748,0.81941,2439.7,2439.5,3.2078]
[1750781459749,8.62623732,2439.9,2439.2,3.2078]
[1750781459951,0.81949,2439.5,2439.4,0.8195]
[1750781460141,0.8195,2439.4,2439.3,0.81951]
[1750781460341,0.8195,2439.4,2439.2,4.02734]
[1750781460541,0.81953,2439.3,2439.2,4.02734]
[1750781460743,0.81945,2439.6,2439.4,0.81948]
[1750781460944,0.81947,2439.5,2439.4,0.81948]
[1750781461140,27.4366,2439.7,2439.3,0.81951]
[1750781461344,27.4366,2439.7,2439.2,3.2078]
[1750781461546,2.04868,2439.5,2438.7,2.04933]
[1750781461746,0.81965,2439.0,2438.9,0.81965]
[1750781461942,3.2078,2439.3,2439.1,0.81959]
[1750781462144,0.81964,2439.0,2438.9,4.02746]
[1750781462448,7.118,2439.0,2438.6,0.81974]
[1750781462748,0.81972,2438.8,2438.6,0.81974]
[1750781462950,1.3326,2438.9,2438.6,0.81974]
[1750781463149,1.3326,2438.9,2438.5,3.2078]
[1750781463451,0.81976,2438.7,2438.3,0.7683]
[1750781463747,7.118,2438.6,2438.5,0.81977]
[1750781464139,7.93779,2438.6,2438.4,0.81981]
[1750781464350,7.118,2438.6,2438.5,0.8198]
[1750781464554,7.93777,2438.6,2438.5,0.8198]
[1750781465554,0.81981,2438.5,2438.4,0.81982]
[1750781465761,0.81981,2438.5,2438.4,0.81981]
[1750781466050,7.93779,2438.6,2438.5,0.8198]
[1750781466852,7.118,2438.6,2438.5,0.8198]
[1750781467052,7.93777,2438.6,2438.5,0.8198]
[1750781467251,7.118,2438.6,2438.5,0.8198]
[1750781467447,7.93777,2438.6,2438.5,0.8198]
[1750781467649,3.2078,2439.0,2438.4,2.04958]
[1750781467952,0.81972,2438.8,2438.7,0.81971]
[1750781468146,7.118,2438.9,2438.5,3.43101]
[1750781468147,0.81977,2438.6,2438.5,2.20127]
[1750781468653,0.81976,2438.7,2438.6,0.81974]
[1750781469254,7.118,2438.9,2438.5,0.81978]
[1750781469255,0.81979,2438.6,2438.5,0.81978]
[1750781469450,2.04936,2438.7,2438.2,4.5893]
[1750781469643,0.81987,2438.3,2438.2,3.2078]
[1750781469954,0.81992,2438.2,2438.1,0.81991]
[1750781470653,0.81997,2438.0,2437.9,4.02777]
[1750781471041,0.82001,2437.9,2437.8,0.82001]
[1750781471349,7.119,2438.0,2437.7,2.05018]
[1750781471542,7.119,2438.0,2437.6,3.9694]
[1750781471743,7.119,2438.0,2437.7,0.82003]
[1750781471744,0.82006,2437.8,2437.7,0.82003]
[1750781472356,0.82007,2437.7,2437.6,4.02791]
[1750781472748,0.82007,2437.7,2437.6,3.2078]
[1750781473057,0.82007,2437.7,2437.6,4.02791]
[1750781473952,0.82007,2437.7,2437.6,3.2078]
[1750781474354,0.82007,2437.7,2437.6,4.02791]
[1750781474757,3.49244,2437.9,2437.6,3.2078]
[1750781474758,1.4424,2437.9,2437.6,3.2078]
[1750781475058,1.4424,2437.9,2437.7,0.82006]
[1750781475059,0.82006,2437.8,2437.7,0.82006]
[1750781475248,0.82007,2437.7,2437.6,3.2078]
[1750781475446,1.4424,2437.9,2437.8,0.82004]
[1750781475642,2.26241,2437.9,2437.8,0.82004]
[1750781476054,8.5284,2437.9,2437.6,3.2078]
[1750781476255,0.82007,2437.7,2437.6,4.02789]
[1750781476651,0.82007,2437.7,2437.6,3.2078]
[1750781477351,0.82007,2437.7,2437.5,0.82011]
[1750781477352,3.2078,2437.7,2437.2,1.4018]
[1750781477557,0.82012,2437.6,2437.5,0.82012]
[1750781477956,3.2078,2437.7,2437.2,3.4524]
[1750781478257,7.90611,2437.6,2437.5,0.82011]
[1750781478457,3.2078,2437.7,2437.6,0.82011]
[1750781478756,27.5224,2437.9,2437.8,0.82004]
[1750781479061,35.42841,2437.9,2437.8,0.82004]
[1750781479254,35.42841,2437.9,2437.7,0.82005]
[1750781479255,0.82006,2437.8,2437.7,0.82005]
[1750781479471,9.34843,2437.9,2437.8,0.82004]
[1750781479658,8.5294,2437.9,2437.8,0.82004]
[1750781479858,2.26241,2437.9,2437.8,0.82004]
[1750781480055,0.82005,2437.8,2437.7,0.82005]
[1750781480260,7.90705,2437.8,2437.7,0.82005]
[1750781480951,0.82009,2437.7,2437.6,0.82009]
[1750781481662,7.90707,2437.8,2437.7,0.82007]
[1750781481857,1.0255,2437.7,2437.2,3.2078]
[1750781482062,0.82015,2437.5,2437.4,0.82015]
[1750781482358,1.8456,2437.7,2437.6,0.82011]
[1750781484058,5.77343732,2438.8,2437.9,0.81998]
[1750781484255,10.2948,2438.9,2437.8,0.82001]
[1750781484256,0.81998,2438.0,2437.8,0.82001]
[1750781484456,0.81992,2438.2,2438.1,0.81993]
[1750781484657,7.087,2438.6,2438.0,2.04994]
[1750781484857,7.087,2438.6,2438.5,4.02758]
[1750781490357,7.087,2438.6,2438.5,3.2078]
[1750781490567,7.90677,2438.6,2438.5,3.2078]
[1750781491157,7.087,2438.6,2438.3,0.81984]
[1750781491359,0.81982,2438.5,2438.4,0.81983]
[1750781492262,7.8303,2438.6,2438.2,3.2078]
[1750781492467,0.81987,2438.3,2438.2,3.2078]
[1750781492861,2.90725,2438.4,2438.3,0.81987]
[1750781493265,0.81987,2438.3,2438.2,4.02768]
[1750781493660,0.81987,2438.3,2438.2,3.2078]
[1750781494869,0.81987,2438.3,2438.2,4.0277]
[1750781495271,2.90727,2438.4,2438.3,0.81987]
[1750781495665,0.81987,2438.3,2438.2,3.2078]
[1750781496164,2.0874,2438.4,2438.2,4.0277]
[1750781496365,2.90725,2438.4,2438.3,0.81987]
[1750781496770,0.81987,2438.3,2438.2,3.2078]
[1750781497069,0.81987,2438.3,2438.2,4.0277]
[1750781497865,0.81987,2438.3,2438.2,3.2078]
[1750781498259,0.81987,2438.3,2438.2,4.0277]
[1750781498765,0.81987,2438.3,2438.2,3.2078]
[1750781499474,0.81987,2438.3,2438.2,4.0277]
[1750781499972,0.81987,2438.3,2438.2,3.2078]
[1750781500269,0.81987,2438.3,2438.2,4.0277]
[1750781500666,0.81987,2438.3,2438.2,3.2078]
[1750781500868,2.25227,2438.3,2438.2,3.2078]
[1750781501271,0.81996,2438.1,2437.9,3.2078]
[1750781501474,7.087,2438.1,2438.0,0.81995]
[1750781501676,7.90694,2438.1,2438.0,0.81995]
[1750781502375,7.087,2438.1,2438.0,0.81995]
[1750781503777,7.087,2438.1,2438.0,2.18337]
[1750781503976,7.087,2438.2,2438.1,0.81994]
[1750781504277,7.087,2438.2,2438.1,2.18334]
[1750781504463,3.2467,2438.5,2438.4,0.81984]
[1750781504668,3.2467,2438.5,2438.4,4.02764]
[1750781504963,7.90666,2439.0,2438.9,0.81967]
[1750781505370,7.90664,2439.0,2438.9,0.81967]
[1750781506580,7.087,2439.0,2438.9,0.81967]
[1750781508175,0.81967,2438.9,2438.7,3.2078]
[1750781508377,0.81967,2438.9,2438.8,0.8197]
[1750781508577,7.90666,2439.0,2438.9,0.81967]
[1750781508872,0.81967,2438.9,2438.8,0.81968]
[1750781509279,7.90665,2439.0,2438.9,0.81967]
[1750781509577,33.95165,2439.0,2438.9,0.81967]
[1750781510275,33.132,2439.0,2438.9,0.81967]
[1750781510476,8.0879,2439.1,2439.0,0.81964]
[1750781510676,8.0879,2439.1,2439.0,4.02744]
[1750781510875,8.9075,2439.1,2439.0,4.02744]
[1750781511378,10.1378,2439.1,2439.0,4.02744]
[1750781512679,2.0499,2439.1,2439.0,9.02744]
[1750781512878,0.04170702,2439.1,2439.0,11.16624]
[1750781513182,0.04170702,2439.1,2439.0,13.59654371]
[1750781514178,0.04170702,2439.1,2439.0,11.16624]
[1750781514582,0.04170702,2439.1,2439.0,13.59654371]
[1750781514781,0.04170702,2439.1,2439.0,11.16624]
[1750781515081,3.3444,2439.3,2439.2,0.81957]
[1750781515282,3.3444,2439.3,2439.2,11.59300732]
[1750781515784,3.3444,2439.3,2439.2,12.99080732]
[1750781516290,3.3444,2439.3,2439.2,2.21737]
[1750781516588,2.8696,2439.3,2439.2,2.21737]
[1750781518091,2.8696,2439.3,2439.2,7.21737]
[1750781520297,2.8696,2439.3,2439.2,12.99080732]
[1750781520691,2.8696,2439.3,2439.2,2.21737]
[1750781520997,0.8196,2439.1,2439.0,3.2078]
[1750781521191,0.81974,2438.7,2438.6,0.81976]
[1750781521393,12.31881,2439.1,2438.5,5.25728]
[1750781521591,0.81974,2438.7,2438.6,2.25514]
[1750781521800,0.81974,2438.7,2438.6,0.81974]
[1750781522097,0.81973,2438.8,2438.7,0.8197]
[1750781522297,0.8197,2438.9,2438.8,0.81966]
[1750781522697,0.81964,2439.1,2439.0,0.81964]
[1750781522995,7.88064,2439.1,2439.0,0.81964]
[1750781523202,7.061,2439.1,2439.0,0.81964]
[1750781523403,7.061,2439.1,2439.0,2.25504]
[1750781523597,7.8806,2439.1,2439.0,2.25504]
[1750781523800,7.8806,2439.1,2438.9,0.0637515]
[1750781523801,0.81964,2439.0,2438.9,0.0637515]
[1750781524107,0.81964,2439.0,2438.5,6.44672056]
[1750781524108,1.3069,2439.0,2438.6,0.81975]
[1750781524306,0.81983,2438.5,2438.4,0.81984]
[1750781524599,7.88083,2438.5,2438.4,0.81984]
[1750781525792,7.061,2438.5,2438.1,7.69996056]
[1750781525990,7.88081,2438.5,2438.4,0.81984]
[1750781526302,7.061,2438.5,2438.4,0.81984]
[1750781527804,0.81987,2438.4,2438.3,0.81985]
[1750781528007,7.88083,2438.5,2438.4,0.81984]
[1750781528205,0.81987,2438.4,2438.3,0.81985]
[1750781528500,7.061,2438.5,2438.4,0.81984]
[1750781529305,7.061,2438.5,2438.4,4.02764]
[1750781529802,7.061,2438.5,2438.4,0.81984]
[1750781530197,7.8808,2438.5,2438.4,0.81984]
[1750781530406,7.061,2438.5,2438.4,0.81984]
[1750781531707,0.81986,2438.4,2438.3,0.81984]
[1750781533004,7.061,2438.5,2438.4,0.81984]
[1750781536315,7.8808,2438.5,2438.4,0.81984]
[1750781538921,0.81986,2438.4,2438.3,0.81985]
[1750781539314,7.88083,2438.5,2438.4,0.8835915]
[1750781542820,7.88083,2438.5,2438.4,0.0637515]
[1750781543014,7.88083,2438.5,2438.4,0.8835915]
[1750781544620,7.061,2438.5,2438.4,0.8835915]
[1750781544817,0.4747,2438.6,2438.5,0.8198]
[1750781545023,2.049,2439.2,2438.5,0.8198]
[1750781545024,0.8055,2439.1,2438.8,0.81969]
[1750781545214,0.8055,2439.1,2438.9,0.81967]
[1750781545414,0.81966,2439.0,2438.9,0.81967]
[1750781545617,0.8055,2439.1,2439.0,0.81964]
[1750781545817,1.6251,2439.1,2439.0,0.81964]
[1750781546119,0.8055,2439.1,2438.8,1.4229]
[1750781546319,0.81967,2438.9,2438.8,0.81969]
[1750781546526,0.8197,2438.8,2438.7,0.81971]
[1750781546723,7.8627,2438.8,2438.7,0.81971]
[1750781547022,0.81974,2438.7,2438.6,0.81974]
[1750781547218,7.86273,2438.8,2438.7,0.81974]
[1750781547428,0.81975,2438.7,2438.6,0.81975]
[1750781547615,0.8198,2438.5,2438.4,0.0637515]
[1750781547816,1.5501,2438.6,2438.4,0.0637515]
[1750781548027,1.5501,2438.6,2438.5,0.8198]
[1750781548028,2.36988,2438.6,2438.5,0.8198]
[1750781548220,0.8198,2438.5,2438.4,0.8835715]
[1750781548414,2.3699,2438.6,2438.5,0.8198]
[1750781549919,1.5501,2438.6,2438.5,0.8198]
[1750781550120,2.36987,2438.6,2438.5,0.8198]
[1750781551125,3.17387,2438.6,2438.5,0.8198]
[1750781551323,2.3541,2438.6,2438.5,0.8198]
[1750781551527,1.5964,2438.6,2438.5,0.8198]
[1750781551825,2.41617,2438.6,2438.5,0.8198]
[1750781552530,1.5964,2438.6,2438.5,0.8198]
[1750781553530,1.5964,2438.6,2438.5,2.2143]
[1750781553725,0.804,2438.6,2438.5,4.65662056]
[1750781553932,0.804,2438.6,2438.5,2.2143]
[1750781554134,0.1211,2438.6,2438.5,7.2143]
[1750781554332,0.1211,2438.6,2438.5,10.48086779]
[1750781554631,0.1211,2438.6,2438.5,7.2143]
[1750781555628,0.1211,2438.6,2438.5,10.54461929]
[1750781555930,0.1211,2438.6,2438.5,7.2780515]
[1750781556632,0.1211,2438.6,2438.5,2.2143]
[1750781557031,0.1601,2438.7,2438.6,0.81977]
[1750781557231,10.30444804,2439.9,2438.6,0.81977]
[1750781557232,0.81944,2439.6,2439.5,0.81943]
[1750781557427,8.6198,2439.9,2439.4,2.4506053]
[1750781557624,8.6198,2439.9,2439.5,2.1675]
[1750781557825,8.6198,2439.9,2439.8,0.81937]
[1750781557826,7.8209,2439.9,2439.8,0.81937]
[1750781558027,8.79127278,2439.9,2439.8,0.81937]
[1750781558627,7.8209,2439.9,2439.8,0.81937]
[1750781558925,8.64023,2439.9,2439.7,0.81938]
[1750781559231,7.8209,2439.9,2439.6,0.81942]
[1750781559425,0.81939,2439.8,2439.6,0.81942]
[1750781559628,0.8194,2439.7,2439.6,0.81942]
[1750781559932,4.02722,2439.7,2439.5,0.81944]
[1750781560124,3.2078,2439.7,2439.2,0.7485]
[1750781560436,35.98775732,2439.6,2439.2,0.81956]
[1750781560630,0.81953,2439.3,2439.2,0.81956]
[1750781560938,0.81957,2439.2,2439.1,0.81958]
[1750781561229,7.042,2439.5,2439.2,0.81956]
[1750781561230,0.81955,2439.3,2439.2,0.81956]
[1750781561433,4.76583,2439.4,2438.9,2.04916]
[1750781561736,4.76583,2439.4,2439.3,0.81953]
[1750781561938,4.76583,2439.4,2439.2,0.81954]
[1750781562424,4.76583,2439.4,2439.3,0.81953]
[1750781563437,3.9463,2439.4,2439.3,0.81953]
[1750781563735,4.7658,2439.4,2439.3,0.81953]
[1750781564137,4.7658,2439.4,2439.2,0.81955]
[1750781564326,1.558,2439.4,2438.9,6.55756]
[1750781564935,1.558,2439.4,2439.3,0.81953]
[1750781565634,0.7385,2439.4,2438.9,6.55756]
[1750781565836,0.81958,2439.2,2439.1,0.81958]
[1750781566431,2.0851,2439.4,2439.0,0.81961]
[1750781566633,2.0851,2439.4,2438.9,5.25697]
[1750781566835,2.90463,2439.4,2439.2,0.81955]
[1750781567135,0.81957,2439.2,2439.1,0.81958]
[1750781567333,0.81955,2439.3,2439.2,0.81954]
[1750781568141,1.55802,2439.4,2439.3,0.81953]
[1750781568338,0.7385,2439.4,2439.3,0.81953]
[1750781568635,1.558,2439.4,2439.3,0.81953]
[1750781569335,0.7385,2439.4,2439.3,0.81953]
[1750781569530,4.4275,2439.4,2439.3,0.81953]
[1750781570341,0.81957,2439.2,2439.1,0.8833415]
[1750781570635,0.81955,2439.3,2439.2,0.81956]
[1750781570842,5.86303,2439.4,2439.3,0.81953]
[1750781571932,4.42753,2439.4,2439.3,0.81953]
[1750781573250,3.608,2439.4,2438.9,4.5906]
[1750781573441,0.81972,2438.8,2438.7,0.81971]
[1750781573641,7.017,2438.8,2438.7,0.81971]
[1750781574137,8.6437,2438.8,2438.7,0.81971]
[1750781574333,7.824,2438.8,2438.7,0.81971]
[1750781575440,7.824,2438.8,2438.7,2.21291]
[1750781575636,0.807,2438.8,2438.7,2.21291]
[1750781575842,8.6437,2438.8,2438.7,0.81971]
[1750781576344,0.81974,2438.7,2438.6,0.81974]
[1750781576545,7.83674,2438.7,2438.6,0.81974]
[1750781576841,7.017,2438.7,2438.6,0.81974]
[1750781577238,7.83674,2438.7,2438.6,0.81974]
[1750781578045,7.017,2438.7,2438.3,7.04548153]
[1750781578241,7.017,2438.7,2438.3,9.09516153]
[1750781578446,7.017,2438.7,2438.3,7.04548153]
[1750781579043,0.81984,2438.4,2438.3,6.47212153]
[1750781579235,0.81982,2438.5,2438.4,0.81981]
[1750781579632,0.81984,2438.4,2438.3,6.47213153]
[1750781579846,0.81983,2438.5,2438.4,0.81982]
[1750781580249,0.81983,2438.5,2438.4,0.81983]
[1750781581140,0.81984,2438.4,2438.3,5.65228153]
[1750781581339,0.81984,2438.4,2438.1,0.8014]
[1750781581340,0.8199,2438.2,2438.1,3.26440153]
[1750781581540,0.8199,2438.2,2437.9,5.25781]
[1750781581541,0.81994,2438.1,2438.0,2.44448153]
[1750781581848,0.81997,2438.0,2437.9,4.02777]
[1750781582049,31.72143732,2438.1,2437.3,7.28193589]
[1750781582250,0.82007,2437.8,2437.3,3.2078]
[1750781582545,0.82008,2437.7,2437.6,0.82009]
[1750781582940,0.82011,2437.6,2437.5,0.82012]
[1750781583236,7.83811,2437.6,2437.5,0.82012]
[1750781583433,7.018,2437.6,2437.5,0.82012]
[1750781583844,7.83811,2437.6,2437.5,0.82012]
[1750781584050,7.018,2437.6,2437.5,0.82012]
[1750781584639,7.83811,2437.6,2437.5,0.82012]
[1750781584847,7.018,2437.6,2437.5,0.82012]
[1750781585247,7.83811,2437.6,2437.5,0.82012]
[1750781585442,0.82014,2437.5,2437.4,2.17395]
[1750781585643,0.82014,2437.5,2437.1,5.77343732]
[1750781585644,27.99339,2437.5,2437.1,2.45062629]
[1750781585855,27.99339,2437.5,2436.7,1.58219]
[1750781585856,0.82035,2436.9,2436.7,1.58219]
[1750781586151,0.82035,2436.9,2436.8,0.82038]
[1750781586152,7.83935,2436.9,2436.8,0.82038]
[1750781586741,1.5986,2437.2,2437.0,0.82029]
[1750781587046,3.2078,2437.3,2437.2,0.82024]
[1750781587047,10.2268,2437.3,2437.2,0.82024]
[1750781587252,7.019,2437.3,2437.2,0.82024]
[1750781589143,7.019,2437.3,2437.0,5.3025]
[1750781589144,7.83922,2437.3,2437.1,0.82025]
[1750781589451,0.82024,2437.2,2437.0,5.3025]
[1750781589644,0.82024,2437.2,2436.7,0.7618]
[1750781589645,25.945,2437.1,2436.9,0.82033]
[1750781589950,27.6071,2437.1,2436.9,0.82033]
[1750781590251,0.82031,2437.0,2436.8,0.82038]
[1750781590453,7.02,2436.9,2436.8,0.82038]
[1750781591549,7.02,2437.0,2436.9,0.82034]
[1750781591746,7.02,2437.0,2436.9,2.24124]
[1750781592757,7.02,2437.0,2436.9,0.82034]
[1750781592949,7.84031,2437.0,2436.9,0.82034]
[1750781594047,0.82037,2436.9,2436.7,3.2078]
[1750781594252,27.54727,2436.9,2436.8,0.82035]
[1750781596349,26.7269,2436.9,2436.8,0.82035]
[1750781596744,27.54724,2436.9,2436.8,0.82035]
[1750781597141,0.82045,2436.7,2436.6,0.82043]
[1750781597344,2.1734,2436.8,2436.7,0.82041]
[1750781597545,0.82044,2436.7,2436.6,0.82043]
[1750781598049,0.82045,2436.6,2436.5,0.82045]
[1750781598249,7.84245,2436.6,2436.5,0.82045]
[1750781598758,7.022,2436.6,2436.5,0.82045]
[1750781598946,7.84244,2436.6,2436.5,0.82045]
[1750781599148,7.022,2436.6,2436.5,0.82045]
[1750781600153,7.84244,2436.6,2436.5,0.82045]
[1750781600655,0.82048,2436.5,2436.4,4.02829]
[1750781601058,0.82048,2436.5,2435.8,4.02848]
[1750781601059,5.0,2436.5,2435.8,4.02848]
[1750781601259,0.82074,2435.8,2435.6,3.0638]
[1750781601451,25.938,2435.7,2435.1,5.26017]
[1750781601755,0.82082,2435.5,2435.4,0.82083]
[1750781602056,27.5661,2435.7,2435.2,0.8096]
[1750781602259,0.82079,2435.6,2435.2,2.86188]
[1750781602451,29.618,2435.7,2435.2,0.8096]
[1750781602652,0.82088,2435.3,2435.2,1.63049]
[1750781603046,0.82082,2435.5,2435.4,0.82082]
[1750781603264,28.38686,2435.7,2435.6,0.82078]
[1750781603452,45.33853732,2435.7,2435.1,3.2078]
[1750781603755,3.2078,2435.2,2434.8,5.77343732]
[1750781603956,3.2078,2435.2,2435.0,0.82097]
[1750781604153,0.82088,2435.3,2435.1,0.82095]
[1750781604360,3.2078,2435.5,2434.9,4.5201]
[1750781604660,36.2848,2435.5,2434.9,4.5201]
[1750781604853,0.82096,2435.1,2434.8,0.8356]
[1750781605052,0.82096,2435.1,2434.8,1.65663]
[1750781605357,0.82099,2435.0,2434.6,2.0834]
[1750781605559,0.82102,2434.9,2434.7,0.82108]
[1750781605861,3.2078,2435.2,2435.1,0.82095]
[1750781606047,4.02864,2435.5,2434.8,1.3123]
[1750781606250,3.2078,2435.5,2435.4,0.82085]
[1750781607054,33.116,2435.7,2435.2,1.3123]
[1750781607257,0.82079,2435.6,2435.3,0.797]
[1750781607456,0.82079,2435.6,2435.5,0.82081]
[1750781607854,7.001,2435.7,2435.6,0.82078]
[1750781608256,3.2078,2435.8,2435.7,0.82075]
[1750781608455,3.2078,2436.2,2435.9,0.82066]
[1750781608863,3.2078,2436.2,2435.4,5.4694]
[1750781608864,0.82061,2436.1,2435.8,0.8207]
[1750781609056,0.82065,2436.0,2435.8,0.8207]
[1750781609255,0.82063,2436.1,2435.6,1.4187]
[1750781609462,3.2078,2436.2,2435.9,0.82068]
[1750781609667,0.82061,2436.1,2435.9,0.82068]
[1750781609861,4.0284,2436.2,2436.0,0.82064]
[1750781610158,3.2078,2436.2,2436.1,0.82061]
[1750781610357,0.82052,2436.4,2436.2,0.82055]
[1750781610552,15.7781142,2436.8,2436.2,0.82058]
[1750781610553,0.6794,2436.3,2436.2,0.82058]
[1750781611162,0.6794,2436.3,2436.2,5.82058]
[1750781611357,0.6794,2436.3,2436.2,0.82058]
[1750781611564,0.6794,2436.3,2436.2,5.82058]
[1750781612461,0.6794,2436.3,2436.2,0.82058]
[1750781612854,0.6794,2436.3,2436.2,9.02838]
[1750781614564,0.6794,2436.3,2436.2,4.0921315]
[1750781614871,0.6794,2436.3,2436.2,0.8843315]
[1750781619466,1.49994,2436.3,2436.2,0.8843315]
[1750781619961,0.82066,2436.1,2436.0,0.82063]
[1750781620557,10.2078,2436.2,2435.8,0.82067]
[1750781620767,0.82068,2436.0,2435.9,0.82065]
[1750781620968,0.82072,2435.9,2435.8,0.82069]
[1750781621865,2.05157,2436.1,2435.7,0.82072]
[1750781621866,0.82075,2435.8,2435.7,0.82072]
[1750781622061,1.65345,2435.8,2435.7,0.82072]
[1750781622466,12.8327,2435.8,2435.3,3.2078]
[1750781622665,0.82088,2435.3,2435.2,1.66828]
[1750781623366,7.0,2435.4,2435.3,0.82088]
[1750781625276,0.82079,2435.6,2435.5,0.82076]
[1750781625571,7.82178,2435.6,2435.5,0.82076]
[1750781626376,0.82091,2435.3,2435.2,0.82089]
[1750781627578,0.82086,2435.4,2435.3,0.82085]
[1750781627779,5.44093,2435.5,2435.4,0.82085]
[1750781628776,4.02863,2435.5,2435.4,0.82085]
[1750781630373,3.2078,2435.5,2435.0,1.3447]
[1750781630572,0.82097,2435.1,2435.0,0.82095]
[1750781630776,0.821,2435.0,2434.9,0.82099]
[1750781631081,11.07974,2435.2,2435.1,0.82095]
[1750781631578,10.2588,2435.2,2435.1,0.82095]
[1750781632581,3.2078,2435.2,2435.1,0.82095]
[1750781632784,10.2588,2435.2,2435.1,0.82095]
[1750781632983,4.02859,2435.7,2435.6,0.82075]
[1750781633176,11.07947,2436.0,2435.9,0.82068]
[1750781633486,0.82071,2435.9,2435.8,0.82069]
[1750781633887,11.07946,2436.0,2435.9,0.82068]
[1750781634075,10.2588,2436.0,2435.9,0.82068]
[1750781634475,1.6756,2436.1,2436.0,0.82064]
[1750781634476,2.49622,2436.1,2436.0,0.82064]
[1750781634779,7.051,2436.1,2436.0,0.82064]
[1750781635077,7.87161,2436.1,2436.0,0.82064]
[1750781635271,0.82067,2436.0,2435.5,2.1157415]
[1750781635479,0.82076,2435.7,2435.6,0.82075]
[1750781635980,0.82071,2435.8,2435.6,0.82076]
[1750781636287,0.82072,2435.8,2435.7,0.82073]
[1750781636485,0.82071,2435.8,2435.7,0.82073]
[1750781637387,5.6836,2435.9,2435.8,0.82071]
[1750781637684,4.8629,2435.9,2435.8,0.82071]
[1750781638290,4.0246,2435.9,2435.8,0.82071]
[1750781638478,7.87164,2436.1,2436.0,0.82064]
[1750781638677,7.051,2436.1,2436.0,0.82064]
[1750781638877,7.87161,2436.1,2436.0,0.82064]
[1750781639084,7.051,2436.1,2436.0,0.82064]
[1750781640484,7.87161,2436.1,2436.0,0.82064]
[1750781640887,7.051,2436.1,2436.0,0.82064]
[1750781641786,0.82068,2436.0,2435.9,0.82066]
[1750781641982,7.051,2436.1,2436.0,0.82064]
[1750781642481,7.87161,2436.1,2436.0,0.82064]
[1750781642989,3.2078,2436.2,2436.1,0.82061]
[1750781644281,7.051,2436.4,2436.0,1.4204]
[1750781644480,0.82064,2436.1,2436.0,0.82061]
[1750781644676,0.82061,2436.2,2436.1,0.82058]
[1750781645078,9.10232,2436.4,2436.0,0.82062]
[1750781645079,0.82065,2436.1,2436.0,0.82062]
[1750781645776,2.28025,2436.1,2436.0,0.82062]
[1750781645979,0.82068,2436.0,2435.9,0.82068]
[1750781647485,1.4596,2436.1,2436.0,0.82064]
[1750781647685,8.5096,2436.1,2436.0,0.82064]
[1750781647983,9.33021,2436.1,2436.0,0.82064]
[1750781648189,9.33021,2436.1,2436.0,0.8843915]
[1750781649890,9.33021,2436.1,2436.0,0.0637515]
[1750781651183,10.68521,2436.1,2436.0,0.0637515]
[1750781651381,9.33021,2436.1,2436.0,0.8843915]
[1750781652386,9.33021,2436.1,2436.0,0.0637515]
[1750781653190,10.70751,2436.1,2436.0,0.0637515]
[1750781653897,10.70751,2436.1,2436.0,0.8843915]
[1750781654283,9.33021,2436.1,2436.0,0.8843915]
[1750781654484,12.09601,2436.1,2436.0,0.8843915]
[1750781654685,12.09601,2436.1,2436.0,0.0637515]
[1750781655794,13.48641,2436.1,2436.0,0.0637515]
[1750781657188,0.82071,2435.8,2435.7,2.4459055]
[1750781657495,0.82075,2435.7,2435.6,0.82076]
[1750781657796,7.87075,2435.7,2435.6,0.82076]
[1750781657992,7.87075,2435.7,2435.6,0.82078]
[1750781658195,0.82073,2435.6,2435.5,3.2666355]
[1750781658387,1.67723,2435.6,2435.5,3.2666355]
[1750781658588,1.67723,2435.6,2435.5,3.2786599]
[1750781658790,1.67724,2435.6,2435.5,0.82075]
[1750781658996,0.8565,2435.6,2435.5,3.27869402]
[1750781659189,7.05,2435.7,2435.6,0.82071]
[1750781659392,7.05,2435.7,2435.6,3.27865402]
[1750781659582,7.05,2435.7,2435.6,0.82071]
[1750781659995,0.82065,2435.9,2435.8,0.82061]
[1750781660194,0.82068,2435.8,2435.7,3.27949824]
[1750781660396,0.82068,2435.8,2435.7,0.82065]
[1750781660693,0.82068,2435.8,2435.6,2.45884824]
[1750781660694,0.82063,2435.9,2435.8,0.82062]
[1750781661198,0.82065,2435.8,2435.7,0.82065]
[1750781661795,0.82064,2435.9,2435.8,0.82063]
[1750781661995,0.82064,2435.9,2435.7,2.45884824]
[1750781661996,8.7271,2436.0,2435.9,0.82061]
[1750781662298,0.82063,2435.9,2435.8,0.82062]
[1750781662789,8.72711,2436.0,2435.9,0.82061]
[1750781662990,3.4456,2436.1,2436.0,0.82058]
[1750781663494,3.4456,2436.1,2436.0,0.8843315]
[1750781663691,3.4456,2436.1,2436.0,2.3230315]
[1750781664593,3.4456,2436.1,2436.0,4.78187974]
[1750781665499,3.4456,2436.1,2436.0,2.3230315]